fUSD/lending_fUSD_20241209
["ID","MTS","AMOUNT","RATE_DAILY","PERIOD"]
[344774806,1733783448322,-602.60199315,0.000101,2]
[344774807,1733783448342,-4628.727316,0.000101,2]
[344774808,1733783448352,-609.699585,0.000101,2]
[344774809,1733783448363,-10205.31590009,0.000101,2]
[344774810,1733783448374,-1693.15667074,0.000101,2]
[344774811,1733783448386,-1940.75959092,0.000101,2]
[344774832,1733783493351,1560.99,8.219e-05,2]
[344774833,1733783496496,237.09,9.505e-05,2]
[344774834,1733783496721,237.09,9.508e-05,2]
[344774835,1733783497241,237.09,9.51e-05,2]
[344774836,1733783497411,237.09,9.513e-05,2]
[344774837,1733783497480,237.09,9.515e-05,2]
[344774838,1733783497584,237.09,9.518e-05,2]
[344774839,1733783498006,237.09,9.52e-05,2]
[344774840,1733783498217,237.09,9.523e-05,2]
[344774841,1733783498417,237.09,9.525e-05,2]
[344774842,1733783498651,237.09,9.528e-05,2]
[344774843,1733783498857,237.09,9.53e-05,2]
[344774844,1733783499086,237.09,9.533e-05,2]
[344774845,1733783499463,237.09,9.535e-05,2]
[344774846,1733783499691,237.09,9.538e-05,2]
[344774847,1733783499906,237.09,9.54e-05,2]
[344774848,1733783500167,237.09,9.543e-05,2]
[344774849,1733783500366,237.09,9.545e-05,2]
[344774850,1733783500619,237.09,9.548e-05,2]
[344774851,1733783500823,237.09,9.55e-05,2]
[344774852,1733783501017,237.09,9.553e-05,2]
[344774853,1733783506664,300.0,0.0001,2]
[344774854,1733783507717,250.0,9.483e-05,2]
[344774855,1733783507980,300.0,0.0001,2]
[344774856,1733783508589,300.0,0.0001,2]
[344774857,1733783509226,300.0,0.0001,2]
[344774858,1733783509873,300.0,0.0001,2]
[344774859,1733783514636,300.0,0.0001,3]
[344774860,1733783515361,300.0,0.0001,3]
[344774861,1733783516051,300.0,0.0001,3]
[344774862,1733783516690,300.0,0.0001,3]
[344774863,1733783517303,300.0,0.0001,3]
[344774864,1733783524588,2496.93797,0.0001,2]
[344774865,1733783588136,684.701,9.59e-05,2]
[344774866,1733783596291,180.41,9.412e-05,2]
[344774867,1733783596821,19773.76,9.773e-05,6]
[344774868,1733783598896,1500.0,9.412e-05,2]
[344774869,1733783618481,555.52,9.412e-05,2]
[344774870,1733783621346,5000.0,0.0001,2]
[344774871,1733783627855,4534.98,9.409e-05,2]
[344774872,1733783652054,150.1569955,9.95e-05,2]
[344774875,1733783704070,156.0,9.95e-05,30]
[344774876,1733783713052,23900.0,9.332e-05,2]
[344774877,1733783732104,1000.0,9.332e-05,2]
[344774878,1733783741823,1852.42,9.33e-05,2]
[344774879,1733783768077,1982.3251,0.0001,2]
[344774880,1733783786600,5704.9948,0.0001,2]
[344774881,1733783875629,391.34,9.288e-05,2]
[344774882,1733783882849,3000.0,0.0001,2]
[344774883,1733783959874,-155.0,0.00013384,30]
[344774884,1733783959911,-155.0,0.0001524,30]
[344774885,1733783959950,-1521.23,0.00016658,30]
[344774886,1733784004447,156.75485924,9.95e-05,30]
[344774887,1733784011808,250.0,9.286e-05,2]
[344774888,1733784112515,1784.88,9.27e-05,2]
[344774889,1733784189179,167.38,9.554e-05,2]
[344774890,1733784224338,257.55,9.275e-05,2]
[344774891,1733784252355,2080.78165,0.0001,2]
[344774892,1733784267215,656.101,9.59e-05,2]
[344774893,1733784291568,150.0,9.261e-05,2]
[344774894,1733784315123,7568.8030663,0.0001,3]
[344774895,1733784356045,1503.9,9.266e-05,2]
[344774898,1733784455781,1535.12,8.219e-05,2]
[344774899,1733784461402,1821.67,9.284e-05,2]
[344774900,1733784524152,-1445.16,0.00016658,30]
[344774907,1733784582473,163.09,9.286e-05,2]
[344774908,1733784595766,555.58,9.286e-05,2]
[344774909,1733784600466,2500.0,0.0001,2]
[344774910,1733784628368,176.82,9.284e-05,2]
[344774911,1733784628470,176.82,9.8e-05,2]
[344774917,1733784632099,-167.38,0.0001008,2]
[344774918,1733784632109,-150.0,0.0001008,2]
[344774919,1733784632119,-300.0,0.0001008,2]
[344774920,1733784632129,-5522.62,0.00010081,2]
[344774921,1733784632140,-524.18713222,0.00010081,2]
[344774922,1733784632157,-24747.06296211,0.00010081,2]
[344774923,1733784632274,-22146.12990567,0.00010081,2]
[344774924,1733784632285,-1000.0,0.00010081,2]
[344774925,1733784632295,-31606.82356459,0.00010082,2]
[344774926,1733784632308,-473.25989258,0.00010082,2]
[344774927,1733784632320,-705.66447,0.00010082,2]
[344774928,1733784632332,-682.25376,0.00010082,2]
[344774929,1733784632344,-623.22109773,0.00010082,2]
[344774930,1733784632356,-1699.7652,0.00010082,2]
[344774931,1733784632369,-1499.39297522,0.00010082,2]
[344774932,1733784632381,-368.866,0.00010082,2]
[344774933,1733784632393,-1535.39079124,0.00010082,2]
[344774934,1733784632411,-679.2768282,0.00010082,2]
[344774935,1733784632424,-1160.1,0.00010082,2]
[344774936,1733784632436,-813.321469,0.00010082,2]
[344774937,1733784632450,-494.027565,0.00010082,2]
[344774938,1733784632462,-1110.65,0.00010082,2]
[344774940,1733784632606,-411.52836287,0.00010082,2]
[344774942,1733784632619,-319.5,0.00010082,2]
[344775126,1733784634460,23900.0,9.289e-05,2]
[344775131,1733784637867,-291.791,0.00010082,2]
[344775133,1733784637959,-698.16702357,0.00010082,2]
[344775134,1733784637969,-150.0,0.00010082,2]
[344775135,1733784637978,-300.0,0.00010098,2]
[344775136,1733784637987,-300.0,0.00010098,2]
[344775137,1733784637997,-300.0,0.00010098,2]
[344775138,1733784638006,-300.0,0.00010098,2]
[344775139,1733784638016,-300.0,0.00010098,2]
[344775140,1733784638025,-300.0,0.00010098,2]
[344775141,1733784638035,-300.0,0.00010098,2]
[344775142,1733784638044,-300.0,0.00010098,2]
[344775143,1733784638053,-300.0,0.00010098,2]
[344775144,1733784638062,-300.0,0.00010098,2]
[344775145,1733784638072,-300.0,0.00010098,3]
[344775146,1733784638081,-300.0,0.00010098,3]
[344775147,1733784638091,-300.0,0.00010098,3]
[344775148,1733784638102,-300.0,0.00010098,3]
[344775149,1733784638111,-136.33657643,0.00010098,3]
[344775150,1733784638124,-163.66342357,0.00010098,3]
[344775151,1733784638133,-300.0,0.00010098,3]
[344775152,1733784638142,-300.0,0.00010098,3]
[344775153,1733784638152,-300.0,0.00010098,3]
[344775154,1733784638161,-300.0,0.00010098,3]
[344775155,1733784638171,-300.0,0.00010098,3]
[344775156,1733784638181,-178.962,0.00010098,2]
[344775157,1733784638191,-2198.65977643,0.00010098,2]
[344775198,1733784638796,-660.69050794,0.00010098,2]
[344775199,1733784638808,-2467.83297368,0.00010098,2]
[344775200,1733784638821,-499.62192,0.00010098,2]
[344775201,1733784638832,-622.51004188,0.00010098,2]
[344775202,1733784638843,-965.31,0.00010098,2]
[344775203,1733784638894,-19001.06398281,0.00010098,2]
[344775204,1733784638906,-6541.32079726,0.00010098,2]
[344775205,1733784638915,-1000.0,0.000101,2]
[344775206,1733784638940,-1000.0,0.000101,2]
[344775207,1733784638950,-1000.0,0.000101,2]
[344775208,1733784638959,-1000.0,0.000101,2]
[344775209,1733784638968,-1000.0,0.000101,2]
[344775210,1733784638977,-1000.0,0.000101,2]
[344775211,1733784638988,-1000.0,0.000101,2]
[344775212,1733784638997,-1000.0,0.000101,2]
[344775213,1733784639006,-1000.0,0.000101,2]
[344775214,1733784639016,-1000.0,0.000101,2]
[344775215,1733784639026,-1000.0,0.000101,2]
[344775216,1733784639035,-1000.0,0.000101,2]
[344775217,1733784639045,-1000.0,0.000101,2]
[344775218,1733784639054,-1000.0,0.000101,2]
[344775219,1733784639063,-1000.0,0.000101,2]
[344775220,1733784639072,-1000.0,0.000101,2]
[344775221,1733784639082,-1000.0,0.000101,2]
[344775222,1733784639091,-1000.0,0.000101,2]
[344775223,1733784639100,-1000.0,0.000101,2]
[344775224,1733784639109,-1000.0,0.000101,2]
[344775225,1733784639118,-1000.0,0.000101,2]
[344775226,1733784639128,-1000.0,0.000101,2]
[344775227,1733784639137,-1000.0,0.000101,2]
[344775228,1733784639147,-1000.0,0.000101,2]
[344775229,1733784639156,-1000.0,0.000101,2]
[344775230,1733784639166,-1000.0,0.000101,2]
[344775231,1733784639175,-1000.0,0.000101,2]
[344775232,1733784639185,-1000.0,0.000101,2]
[344775233,1733784639194,-1000.0,0.000101,2]
[344775234,1733784639204,-1000.0,0.000101,2]
[344775235,1733784639214,-1000.0,0.000101,2]
[344775236,1733784639223,-1000.0,0.000101,2]
[344775237,1733784639233,-1000.0,0.000101,2]
[344775238,1733784639242,-1000.0,0.000101,2]
[344775239,1733784639251,-157.76500875,0.000101,2]
[344775240,1733784639261,-2000.0,0.000101,2]
[344775241,1733784639271,-200.0,0.000101,2]
[344775242,1733784639279,-4743.272,0.000101,2]
[344775243,1733784639288,-1000.0,0.000101,2]
[344775244,1733784639297,-1000.0,0.000101,2]
[344775245,1733784639306,-1000.0,0.000101,2]
[344775246,1733784639315,-1000.0,0.000101,2]
[344775247,1733784639324,-1000.0,0.000101,2]
[344775248,1733784639334,-886.0,0.000101,2]
[344775249,1733784639343,-499.99,0.00010146,2]
[344775250,1733784639352,-14179.07,0.00010146,2]
[344775251,1733784639362,-299.99,0.00010146,2]
[344775252,1733784639372,-999.99,0.00010146,2]
[344775253,1733784639382,-7391.52,0.00010146,2]
[344775254,1733784639392,-9999.99,0.00010146,2]
[344775255,1733784639401,-1306.36,0.00010146,2]
[344775256,1733784639414,-150.99,0.00010146,2]
[344775257,1733784639423,-2979.7,0.00010146,2]
[344775258,1733784639722,-24715.62,0.00010146,2]
[344775259,1733784639750,-9999.99,0.00010146,2]
[344775260,1733784639760,-1506.32,0.00010146,2]
[344775261,1733784639770,-150.99,0.00010146,2]
[344775262,1733784639779,-1107.03,0.00010146,2]
[344775263,1733784639788,-13118.84,0.00010146,2]
[344775264,1733784639798,-6698.752194,0.00010146,2]
[344775265,1733784639810,-531.9,0.00010146,2]
[344775266,1733784639821,-1909.037806,0.00010146,2]
[344775267,1733784639831,-1441.89,0.00010146,2]
[344775268,1733784639841,-1493.0,0.00010164,2]
[344775269,1733784639851,-500.0,0.00010173,2]
[344775270,1733784639860,-500.0,0.00010173,2]
[344775271,1733784639869,-511.13889382,0.00010173,2]
[344775272,1733784639878,-500.0,0.00010173,2]
[344775273,1733784639888,-500.0,0.00010173,2]
[344775274,1733784639898,-304.86210727,0.00010173,2]
[344775275,1733784639907,-577.77051472,0.00010173,2]
[344775276,1733784639917,-500.0,0.00010173,2]
[344775278,1733784639926,-161.04166735,0.00010173,2]
[344775280,1733784639944,-1683.0,0.00010181,2]
[344775281,1733784639957,-978.4679758,0.00010181,2]
[344775282,1733784639972,-700.5320242,0.00010181,2]
[344775283,1733784639982,-1679.0,0.00010181,2]
[344775284,1733784639991,-455.05252176,0.00010181,2]
[344775285,1733784640021,-1223.94747824,0.00010181,2]
[344775286,1733784640031,-1679.0,0.00010181,2]
[344775287,1733784640041,-1679.0,0.00010181,2]
[344775288,1733784640051,-2195.86323422,0.00010181,2]
[344775289,1733784640062,-2195.86323422,0.00010181,2]
[344775290,1733784640072,-2195.86323422,0.00010181,2]
[344775291,1733784640082,-1128.81568852,0.0001019,3]
[344775292,1733784640092,-1128.81568852,0.0001019,3]
[344775293,1733784640101,-1128.81568854,0.0001019,3]
[344775294,1733784640111,-258.45013644,0.0001019,3]
[344775295,1733784640123,-300.01600133,0.0001019,3]
[344775296,1733784640135,-570.34955075,0.0001019,3]
[344775297,1733784640145,-137.37623925,0.0001019,3]
[344775298,1733784640157,-991.43944927,0.0001019,3]
[344775299,1733784640167,-500.0,0.0001019,2]
[344775300,1733784640177,-163.04612809,0.0001019,2]
[344775301,1733784640198,-50.56322264,0.0001019,2]
[344775302,1733784640210,-450.35054502,0.0001019,2]
[344775303,1733784640220,-619.56809418,0.0001019,2]
[344775304,1733784640230,-285.59055614,0.0001019,2]
[344775305,1733784640240,-308.20320466,0.0001019,2]
[344775306,1733784640252,-267.97680355,0.0001019,2]
[344775307,1733784640261,-500.0,0.0001019,2]
[344775308,1733784640271,-500.0,0.0001019,2]
[344775309,1733784640281,-503.70814381,0.0001019,2]
[344775310,1733784640290,-500.85923626,0.0001019,2]
[344775311,1733784640300,-511.84252252,0.0001019,2]
[344775312,1733784640309,-511.84252252,0.0001019,2]
[344775313,1733784640319,-501.37854333,0.0001019,2]
[344775314,1733784640328,-500.0,0.0001019,2]
[344775315,1733784640338,-511.84252252,0.0001019,2]
[344775316,1733784640347,-500.0,0.0001019,2]
[344775317,1733784640358,-511.84252252,0.0001019,2]
[344775318,1733784640367,-574.28052384,0.0001019,2]
[344775319,1733784640377,-135.72665913,0.0001019,2]
[344775376,1733784641270,-376.11586339,0.0001019,2]
[344775377,1733784641280,-500.0,0.0001019,2]
[344775378,1733784641290,-39.22413685,0.0001019,2]
[344775379,1733784641346,-460.77586315,0.0001019,2]
[344775380,1733784641356,-500.0,0.0001019,2]
[344775381,1733784641366,-511.84252252,0.0001019,2]
[344775382,1733784641377,-511.84252252,0.0001019,2]
[344775383,1733784641387,-511.84252252,0.0001019,2]
[344775384,1733784641397,-402.46116755,0.0001019,2]
[344775385,1733784641413,-109.38135497,0.0001019,2]
[344775386,1733784641423,-282.16140349,0.0001019,2]
[344775387,1733784641439,-229.68111903,0.0001019,2]
[344775388,1733784641450,-103.52638096,0.0001019,2]
[344775389,1733784641462,-408.31614156,0.0001019,2]
[344775390,1733784641471,-511.84252252,0.0001019,2]
[344775391,1733784641481,-511.84252252,0.0001019,2]
[344775392,1733784641492,-511.84252252,0.0001019,2]
[344775393,1733784641502,-511.84252252,0.0001019,2]
[344775394,1733784641512,-511.84252252,0.0001019,2]
[344775395,1733784641522,-511.84252252,0.0001019,2]
[344775396,1733784641532,-223.40872332,0.0001019,2]
[344775397,1733784641682,-288.4337992,0.0001019,2]
[344775398,1733784641692,-391.90935797,0.0001019,2]
[344775399,1733784641704,-119.93316455,0.0001019,2]
[344775400,1733784641714,-511.84252252,0.0001019,2]
[344775401,1733784641724,-511.84252252,0.0001019,2]
[344775402,1733784641734,-511.84252252,0.0001019,2]
[344775403,1733784641744,-394.43923861,0.0001019,2]
[344775404,1733784641756,-117.40328391,0.0001019,2]
[344775405,1733784641765,-511.84252252,0.0001019,2]
[344775406,1733784641775,-511.84252252,0.0001019,2]
[344775407,1733784641785,-511.84252252,0.0001019,2]
[344775408,1733784641795,-511.84252252,0.0001019,2]
[344775409,1733784641805,-511.84252252,0.0001019,2]
[344775410,1733784641814,-511.84252252,0.0001019,2]
[344775411,1733784641824,-511.84252252,0.0001019,2]
[344775412,1733784641834,-511.84252252,0.0001019,2]
[344775413,1733784641843,-511.84252252,0.0001019,2]
[344775414,1733784641853,-511.84252252,0.0001019,2]
[344775415,1733784641863,-511.84252252,0.0001019,2]
[344775416,1733784641873,-511.84252252,0.0001019,2]
[344775417,1733784641883,-511.84252252,0.0001019,2]
[344775418,1733784641893,-511.84252252,0.0001019,2]
[344775419,1733784641903,-511.84252252,0.0001019,2]
[344775420,1733784641914,-511.84252252,0.0001019,2]
[344775421,1733784641924,-511.84252252,0.0001019,2]
[344775422,1733784641937,-511.84252252,0.0001019,2]
[344775423,1733784641947,-511.84252252,0.0001019,2]
[344775424,1733784641957,-511.84252252,0.0001019,2]
[344775425,1733784641967,-511.84252252,0.0001019,2]
[344775426,1733784641977,-511.84252252,0.0001019,2]
[344775427,1733784641986,-511.84252252,0.0001019,2]
[344775428,1733784641995,-511.84252252,0.0001019,2]
[344775429,1733784642004,-511.84252252,0.0001019,2]
[344775430,1733784642014,-511.84252252,0.0001019,2]
[344775431,1733784642024,-511.84252252,0.0001019,2]
[344775432,1733784642033,-511.84252252,0.0001019,2]
[344775433,1733784642043,-511.84252252,0.0001019,2]
[344775434,1733784642052,-511.84252252,0.0001019,2]
[344775435,1733784642062,-511.84252252,0.0001019,2]
[344775436,1733784642071,-511.84252252,0.0001019,2]
[344775437,1733784642080,-802.78706778,0.0001019,2]
[344775438,1733784642089,-802.78706778,0.0001019,2]
[344775439,1733784642099,-802.78706778,0.0001019,2]
[344775440,1733784642108,-802.78706778,0.0001019,2]
[344775441,1733784642117,-802.78706778,0.0001019,2]
[344775442,1733784642126,-802.78706778,0.0001019,2]
[344775443,1733784642135,-802.78706778,0.0001019,2]
[344775444,1733784642144,-802.78706778,0.0001019,2]
[344775445,1733784642153,-802.78706778,0.0001019,2]
[344775446,1733784642162,-802.78706778,0.0001019,2]
[344775447,1733784642172,-802.78706778,0.0001019,2]
[344775448,1733784642183,-802.78706778,0.0001019,2]
[344775449,1733784642192,-802.78706778,0.0001019,2]
[344775450,1733784642202,-802.78706778,0.0001019,2]
[344775451,1733784642212,-802.78706778,0.0001019,2]
[344775452,1733784642222,-802.78706778,0.0001019,2]
[344775453,1733784642232,-802.78706778,0.0001019,2]
[344775454,1733784642242,-802.78706778,0.0001019,2]
[344775455,1733784642251,-802.78706778,0.0001019,2]
[344775456,1733784642261,-802.78706778,0.0001019,2]
[344775457,1733784642270,-802.78706778,0.0001019,2]
[344775458,1733784642280,-802.78706778,0.0001019,2]
[344775459,1733784642290,-802.78706778,0.0001019,2]
[344775460,1733784642299,-802.78706778,0.0001019,2]
[344775461,1733784642308,-802.78706778,0.0001019,2]
[344775462,1733784642318,-802.78706778,0.0001019,2]
[344775463,1733784642328,-802.78706778,0.0001019,2]
[344775464,1733784642338,-802.78706778,0.0001019,2]
[344775465,1733784642348,-802.78706778,0.0001019,2]
[344775466,1733784642358,-802.78706778,0.0001019,2]
[344775467,1733784642369,-802.78706778,0.0001019,2]
[344775468,1733784642379,-802.78706776,0.0001019,2]
[344775469,1733784642389,-802.78706776,0.0001019,2]
[344775470,1733784642399,-802.78706776,0.0001019,2]
[344775471,1733784642409,-802.78706776,0.0001019,2]
[344775472,1733784642422,-802.78706776,0.0001019,2]
[344775473,1733784642436,-802.78706776,0.0001019,2]
[344775474,1733784642446,-1289.0,0.00010191,2]
[344775475,1733784642456,-391492.84898953,0.00010191,2]
[344775492,1733784643902,-830.86942781,0.00010191,2]
[344775510,1733784644059,-740.36,0.00010191,2]
[344775512,1733784644071,-570.916685,0.00010191,2]
[344775514,1733784644082,-657.41777,0.00010191,2]
[344775516,1733784644093,-360.26241,0.00010191,2]
[344775519,1733784644104,-2142.69999975,0.00010191,2]
[344775531,1733784644217,-3621.57606582,0.00010191,2]
[344775533,1733784644230,-19431.27410076,0.00010191,2]
[344775536,1733784644241,-34575.95581965,0.00010191,2]
[344775543,1733784644304,-9737.3,0.00010191,2]
[344775721,1733784646006,-1733.9847,0.000101,2]
[344775723,1733784646016,-57949.39679,0.00010191,2]
[344775726,1733784646028,-3084.69547425,0.00010191,2]
[344775728,1733784646039,-19397.440649,0.00010191,2]
[344775730,1733784646051,-1442.20002597,0.00010191,2]
[344775732,1733784646062,-478.38836864,0.00010191,2]
[344775740,1733784646131,-25060.77172763,0.00010191,2]
[344775743,1733784646143,-402.52309571,0.00010191,2]
[344775754,1733784646240,-115732.41600477,0.00010191,2]
[344775756,1733784646252,-21308.24871964,0.00010191,2]
[344775784,1733784646635,-11457.46350387,0.00010191,2]
[344775833,1733784677095,1436.59,9.632e-05,2]
[344775834,1733784680592,1500.0,9.634e-05,2]
[344775835,1733784803276,640.847,9.68e-05,2]
[344775836,1733784852596,810.56,9.863e-05,2]
[344775837,1733784861733,1000.0,9.652e-05,2]
[344775838,1733784904334,154.0,9.652e-05,30]
[344775839,1733784905784,195.67,9.652e-05,2]
[344775840,1733784933740,250.0,9.66e-05,2]
[344775841,1733784970655,195.93,9.647e-05,2]
[344775842,1733784996587,3624.26,9.647e-05,2]
[344775843,1733785075708,278.38540743,9.991e-05,2]
[344775844,1733785091515,168.17,9.679e-05,2]
[344775845,1733785119552,250.0,9.397e-05,2]
[344775846,1733785156338,1543.9,9.392e-05,2]
[344775847,1733785192118,1000.0,0.0001,2]
[344775848,1733785252227,1645.0,0.0001,2]
[344775849,1733785281472,463.16,9.414e-05,2]
[344775851,1733785301841,922.08,9.414e-05,2]
[344775852,1733785302687,5362.098228,0.0001,3]
[344775854,1733785391495,1505.31,8.219e-05,2]
[344775856,1733785421455,200.0,9.428e-05,2]
[344775857,1733785432920,185.59027162,9.991e-05,2]
[344775858,1733785484660,614.019,9.68e-05,2]
[344775859,1733785524635,555.53,9.353e-05,2]
[344775860,1733785535163,150.0,9.35e-05,2]
[344775861,1733785598521,23900.0,9.367e-05,2]
[344775862,1733785622187,1500.0,9.348e-05,2]
[344775863,1733785626443,4744.77,9.331e-05,2]
[344775867,1733785747147,1000.0,0.0001,2]
[344775868,1733785770793,648.44,9.863e-05,2]
[344775869,1733785795103,185.5902716,9.991e-05,2]
[344775870,1733785797236,1000.0,9.363e-05,2]
[344775871,1733785831406,195.67,9.316e-05,2]
[344775875,1733785832046,-185.0,0.00010072,2]
[344775877,1733785832056,-185.5902716,0.00010088,2]
[344775878,1733785832065,-727.07840809,0.0001009,2]
[344775879,1733785832169,-1356.25492191,0.0001009,2]
[344775880,1733785832179,-500.0,0.00010091,2]
[344775881,1733785832189,-81.38241272,0.00010091,2]
[344775882,1733785832200,-387.65768728,0.00010091,2]
[344775883,1733785832210,-1941.0,0.000101,2]
[344775884,1733785832220,-500.0,0.00010137,2]
[344775885,1733785832230,-500.0,0.00010137,2]
[344775886,1733785832243,-1147.0,0.00010141,2]
[344775887,1733785832252,-1145.0,0.00010141,2]
[344775888,1733785832262,-1145.0,0.00010141,2]
[344775889,1733785832272,-1145.0,0.00010141,2]
[344775890,1733785832282,-500.0,0.00010173,2]
[344775891,1733785832291,-500.0,0.00010173,2]
[344775892,1733785832301,-500.0,0.00010173,2]
[344775893,1733785832310,-425.36,0.00010173,7]
[344775894,1733785832319,-2195.86323422,0.00010181,2]
[344775895,1733785832329,-2195.86323422,0.00010181,2]
[344775896,1733785832338,-2195.86323422,0.00010181,2]
[344775897,1733785832348,-150.0,0.00010187,2]
[344775898,1733785832359,-300.0,0.00010188,2]
[344775899,1733785832368,-300.0,0.00010188,2]
[344775900,1733785832377,-300.0,0.00010188,2]
[344775901,1733785832387,-300.0,0.00010188,2]
[344775902,1733785832396,-300.0,0.00010188,2]
[344775903,1733785832406,-300.0,0.00010188,2]
[344775904,1733785832415,-300.0,0.00010188,2]
[344775905,1733785832424,-300.0,0.00010188,2]
[344775906,1733785832433,-300.0,0.00010188,2]
[344775907,1733785832443,-300.0,0.00010188,2]
[344775908,1733785832453,-300.0,0.00010188,3]
[344775909,1733785832463,-300.0,0.00010188,3]
[344775910,1733785832472,-300.0,0.00010188,3]
[344775911,1733785832481,-300.0,0.00010188,3]
[344775912,1733785832494,-300.0,0.00010188,3]
[344775913,1733785832504,-300.0,0.00010188,3]
[344775914,1733785832514,-300.0,0.00010188,3]
[344775915,1733785832523,-300.0,0.00010188,3]
[344775917,1733785832532,-339.51,0.00010188,2]
[344775919,1733785832541,-9999.99,0.00010188,2]
[344775920,1733785832550,-299.99,0.00010188,2]
[344775923,1733785832560,-10931.38735589,0.00010188,2]
[344775925,1733785832572,-1662.91255174,0.00010188,2]
[344775927,1733785832583,-836.50192286,0.00010188,2]
[344775929,1733785832594,-305.33042154,0.00010188,2]
[344775931,1733785832605,-522.80002,0.00010188,2]
[344775934,1733785832616,-1117.85,0.00010188,2]
[344775936,1733785832628,-781.3299975,0.00010188,2]
[344775938,1733785832639,-619.7112904,0.00010188,2]
[344775940,1733785832650,-528.99517848,0.00010188,2]
[344775942,1733785832662,-922.243665,0.00010188,2]
[344775945,1733785832675,-1458.917646,0.00010188,2]
[344775947,1733785832686,-48038.4,0.00010188,2]
[344775949,1733785832697,-9013.00403678,0.00010188,2]
[344775951,1733785832709,-1759.70662724,0.00010188,2]
[344775975,1733785832953,-4685.4,0.00010188,2]
[344775980,1733785832984,-972.60292826,0.00010188,2]
[344775982,1733785832997,-12182.13603311,0.00010188,2]
[344775984,1733785833008,-309.32529922,0.00010188,2]
[344776003,1733785838111,-500.0,0.00010164,2]
[344776004,1733785838121,-500.0,0.00010164,2]
[344776005,1733785838130,-275.63470079,0.00010188,2]
[344776006,1733785838141,-1843.5,0.00010188,2]
[344776007,1733785838152,-820.000011,0.00010188,2]
[344776008,1733785838163,-594.99998642,0.00010188,2]
[344776009,1733785838212,-39706.80032777,0.00010188,2]
[344776010,1733785838222,-999.99,0.00010188,2]
[344776011,1733785838231,-150.99,0.00010188,2]
[344776012,1733785838242,-8032.28,0.00010188,2]
[344776013,1733785838252,-500.0,0.0001019,2]
[344776014,1733785838261,-1214.96573401,0.0001019,3]
[344776015,1733785838271,-1214.96573401,0.0001019,3]
[344776016,1733785838280,-1214.965734,0.0001019,3]
[344776017,1733785838290,-500.00000005,0.0001019,2]
[344776018,1733785838299,-634.99148468,0.0001019,2]
[344776019,1733785838309,-1133.0,0.00010191,2]
[344776020,1733785838318,-152181.04479912,0.00010191,2]
[344776021,1733785838329,-5906.72937929,0.00010191,2]
[344776022,1733785838341,-6836.86997854,0.00010191,2]
[344776023,1733785838353,-2239.098114,0.00010191,2]
[344776024,1733785838364,-866.33639517,0.00010191,2]
[344776025,1733785838391,-8956.1,0.00010191,2]
[344776026,1733785838403,-1446.14367545,0.00010191,2]
[344776027,1733785838414,-17234.67888702,0.00010191,2]
[344776028,1733785838425,-69343.72754286,0.00010191,2]
[344776029,1733785838461,-3579.215,0.00010191,2]
[344776030,1733785838472,-1119.61722992,0.00010191,2]
[344776031,1733785838484,-2572.651043,0.00010191,2]
[344776032,1733785838531,-3734.00000001,0.00010191,2]
[344776033,1733785838543,-6314813.87827648,0.00010191,2]
[344776034,1733785838555,-1341.45,0.00010191,2]
[344776035,1733785838566,-16960.52544779,0.00010191,2]
[344776036,1733785838577,-1354.9999998,0.00010191,2]
[344776059,1733785840124,-91182.00000001,0.00010191,2]
[344776061,1733785840135,-968.43871744,0.00010191,2]
[344776063,1733785840147,-186116.76411126,0.00010191,2]
[344776066,1733785840158,-110070.00000062,0.00010191,2]